[Event "XLIV Barbera del Valles-A 2022"]
[Site "Barbera del Valles"]
[Date "2022.07.08"]
[Round "5.5"]
[White "Sanchez, Sebastian Felipe"]
[Black "Alvarez Albiol, Victor"]
[Result "1-0"]
[ECO "E11"]
[WhiteElo "2440"]
[BlackElo "2367"]
[Annotator "RC"]
[PlyCount "61"]
[EventDate "2022.07.04"]
[EventType "swiss"]
[EventCountry "ESP"]
[SourceTitle "playchess.com"]
[Source "ChessBase"]
[SourceQuality "1"]
[TimeControl "5400+30"]

1. d4 {[%emt 0:00:03]} Nf6 {[%emt 0:00:06]} 2. c4 {[%emt 0:00:05]} e6 {[%emt 0:00:03]} 3. g3 {[%emt 0:00:42]} d5 {[%emt 0:00:17]} 4. Nf3 {[%emt 0:00:07]} Bb4+ {[%emt 0:00:06]} 5. Bd2 {[%emt 0:00:35]} Be7 {[%emt 0:00:10]} 6. Bg2 {[%emt 0:00:49]} O-O {[%emt 0:00:13]} 7. O-O {[%emt 0:00:44]} Nbd7 {[%emt 0:00:28]} 8. Qc2 {[%emt 0:01:26]} c6 {[%emt 0:00:49]} 9. Rd1 {[%emt 0:03:18]} b6 {[%emt 0:00:54]} 10. Bg5 {[%emt 0:02:00]} Bb7 {[%emt 0:07:14]} 11. Nc3 {[%emt 0:03:43]} dxc4 {[%emt 0:05:33]} 12. Nd2 {[%emt 0:03:16]} Nd5 {[%emt 0:06:52]} 13. Bxe7 {[%emt 0:00:48]} Qxe7 {[%emt 0:00:14]} 14. Nxc4 {[%emt 0:00:10]} Nxc3 {[%emt 0:12:00]} 15. Qxc3 {[%emt 0:05:30]} Rac8 {[%emt 0:04:15]} 16. e4 {[%emt 0:12:57]} Ba6 {[%emt 0:05:48]} 17. Ne3 {[%emt 0:11:59]} Rfd8 {[%emt 0:02:02]} 18. Rd2 {[%emt 0:03:36]} Nf6 {[%emt 0:02:00]} 19. Rad1 {[%emt 0:01:26]} h6 {[%emt 0:01:22]} 20. Qb3 {[%emt 0:11:51]} Kh8 {[%emt 0:03:46]} 21. f4 {[%emt 0:07:01]} c5 {[%emt 0:07:57]} 22. e5 {[%emt 0:00:30]} Nd5 {[%emt 0:02:19]} 23. Nxd5 {[%emt 0:07:26]} exd5 {[%emt 0:00:09]} 24. Bxd5 {[%emt 0:00:14]} c4 {[%emt 0:05:10]} 25. Qf3 {[%emt 0:00:57]} f5 {[%emt 0:12:01]} 26. Bc6 {[%emt 0:05:43]} Rxc6 {[%emt 0:02:35]} 27. Qxc6 {[%emt 0:00:04]} Bb7 {[%emt 0:00:13]} 28. Qxc4 {[%emt 0:00:04]} Bd5 {[%emt 0:00:05]} 29. Qd3 {[%emt 0:00:07]} Rf8 {[%emt 0:02:12]} 30. Rc1 {[%emt 0:02:16]} g5 {[%emt 0:00:18]} 31. Qa3 {[%emt 0:00:26]} 1-0

[Event "XLIV Barbera del Valles-A 2022"]
[Site "Barbera del Valles"]
[Date "2022.07.08"]
[Round "5.6"]
[White "Dahale, Atul"]
[Black "Munoz, Miguel"]
[Result "1/2-1/2"]
[ECO "E90"]
[WhiteElo "2162"]
[BlackElo "2408"]
[Annotator "RC"]
[PlyCount "117"]
[EventDate "2022.07.04"]
[EventType "swiss"]
[EventCountry "ESP"]
[SourceTitle "playchess.com"]
[Source "ChessBase"]
[SourceQuality "1"]
[TimeControl "5400+30"]

1. d4 Nf6 {[%emt 1:31:00]} 2. c4 {[%emt 1:31:30]} c5 {[%emt 0:00:30]} 3. d5 {[%emt 0:00:30]} d6 {[%emt 0:00:30]} 4. Nc3 {[%emt 0:00:30]} g6 {[%emt 0:00:30]} 5. e4 {[%emt 0:00:30]} Bg7 {[%emt 0:00:30]} 6. h3 {[%emt 0:00:30]} O-O {[%emt 0:00:30]} 7. Nf3 {[%emt 0:00:30]} e6 {[%emt 0:00:30]} 8. Bd3 {[%emt 0:00:30]} exd5 {[%emt 0:00:30]} 9. exd5 {[%emt 0:00:30]} Re8+ {[%emt 0:00:30]} 10. Be3 {[%emt 0:00:30]} Bh6 {[%emt 0:00:30]} 11. O-O {[%emt 0:00:30]} Bxe3 {[%emt 0:00:30]} 12. fxe3 {[%emt 0:00:30]} Qe7 {[%emt 0:00:30]} 13. e4 {[%emt 0:00:30]} Nbd7 {[%emt 0:00:30]} 14. Qd2 {[%emt 0:00:30]} a6 {[%emt 0:00:30]} 15. Rf2 {[%emt 0:00:30]} Kg7 {[%emt 0:00:30]} 16. Raf1 {[%emt 0:00:30]} Rf8 {[%emt 0:00:30]} 17. Ne2 {[%emt 0:00:30]} b5 {[%emt 0:00:30]} 18. Ng3 {[%emt 0:00:30]} Ne8 {[%emt 0:00:30]} 19. Qc3+ {[%emt 0:00:30]} f6 {[%emt 0:00:30]} 20. cxb5 {[%emt 0:00:30]} axb5 {[%emt 0:00:30]} 21. Bxb5 {[%emt 0:00:30]} Rxa2 {[%emt 0:00:30]} 22. Bxd7 {[%emt 0:00:30]} Qxd7 {[%emt 0:00:30]} 23. b4 {[%emt 0:00:30]} cxb4 {[%emt 0:00:30]} 24. Qxb4 {[%emt 0:00:30]} Qa7 {[%emt 0:00:30]} 25. Qc4 {[%emt 0:00:30]} Rxf2 {[%emt 0:00:30]} 26. Rxf2 {[%emt 0:00:30]} Bd7 {[%emt 0:00:30]} 27. Nd4 {[%emt 0:00:30]} Nc7 {[%emt 0:00:30]} 28. Ra2 {[%emt 0:00:30]} Qb6 {[%emt 0:00:30]} 29. Kh2 {[%emt 0:00:30]} Rc8 {[%emt 0:00:30]} 30. Nge2 {[%emt 0:00:30]} Ne8 {[%emt 0:00:30]} 31. Qd3 {[%emt 0:00:30]} Kg8 {[%emt 0:00:30]} 32. Rc2 {[%emt 0:00:30]} Rc5 {[%emt 0:00:30]} 33. Nf4 {[%emt 0:00:30]} Rxc2 {[%emt 0:00:30]} 34. Nxc2 {[%emt 0:00:30]} Qf2 {[%emt 0:00:30]} 35. Ne2 {[%emt 0:00:30]} f5 {[%emt 0:00:30]} 36. Ncd4 {[%emt 0:00:30]} Nf6 {[%emt 0:00:30]} 37. exf5 {[%emt 0:00:30]} Bxf5 {[%emt 0:00:30]} 38. Nxf5 {[%emt 0:00:30]} Qxf5 {[%emt 0:00:30]} 39. Qxf5 {[%emt 0:00:30]} gxf5 {[%emt 0:00:30]} 40. Nd4 {[%emt 0:00:30]} f4 {[%emt 0:00:30]} 41. Nf5 {[%emt 0:00:30]} Ne4 {[%emt 0:00:30]} 42. Nd4 {[%emt 0:00:30]} Ng3 {[%emt 0:00:30]} 43. Ne6 {[%emt 0:00:30]} Ne2 {[%emt 0:00:30]} 44. Ng5 {[%emt 0:00:30]} Nc3 {[%emt 0:00:30]} 45. g3 {[%emt 0:00:30]} h6 {[%emt 0:00:30]} 46. Nf3 {[%emt 0:00:30]} Nxd5 {[%emt 0:00:30]} 47. gxf4 {[%emt 0:00:30]} Nxf4 {[%emt 0:00:30]} 48. Kg3 {[%emt 0:00:30]} Ne6 {[%emt 0:00:30]} 49. Kg4 {[%emt 0:00:30]} Kf7 {[%emt 0:00:30]} 50. Kf5 {[%emt 0:00:30]} Ng7+ {[%emt 0:00:30]} 51. Ke4 {[%emt 0:00:30]} Kf6 {[%emt 0:00:30]} 52. Kd5 {[%emt 0:00:30]} Nf5 {[%emt 0:00:30]} 53. Nd2 {[%emt 0:00:30]} Kg5 {[%emt 0:00:30]} 54. Ne4+ {[%emt 0:00:30]} Kf4 {[%emt 0:00:30]} 55. Nxd6 {[%emt 0:00:30]} Nxd6 {[%emt 0:00:30]} 56. Kxd6 {[%emt 0:00:30]} h5 {[%emt 0:00:30]} 57. h4 {[%emt 0:00:30]} Kg4 {[%emt 0:00:30]} 58. Ke5 {[%emt 0:00:30]} Kxh4 {[%emt 0:00:30]} 59. Kf4 1/2-1/2

[Event "XLIV Barbera del Valles-A 2022"]
[Site "Barbera del Valles"]
[Date "2022.07.08"]
[Round "5.7"]
[White "Bernado Lopez, Roger"]
[Black "Ortiz Verdezoto, Anahi"]
[Result "0-1"]
[ECO "C81"]
[WhiteElo "2315"]
[BlackElo "2046"]
[Annotator "RC"]
[PlyCount "142"]
[EventDate "2022.07.04"]
[EventType "swiss"]
[EventCountry "ESP"]
[SourceTitle "playchess.com"]
[Source "ChessBase"]
[SourceQuality "1"]
[TimeControl "5400+30"]

1. e4 {[%emt 0:00:06]} e5 {[%emt 0:00:07]} 2. Nf3 {[%emt 0:00:10]} Nc6 {[%emt 0:00:07]} 3. Bb5 {[%emt 0:00:08]} a6 {[%emt 0:00:09]} 4. Ba4 {[%emt 0:00:06]} Nf6 {[%emt 0:00:06]} 5. O-O {[%emt 0:00:16]} Nxe4 {[%emt 0:00:17]} 6. d4 {[%emt 0:00:11]} b5 {[%emt 0:00:28]} 7. Bb3 {[%emt 0:00:06]} d5 {[%emt 0:00:05]} 8. dxe5 {[%emt 0:00:04]} Be6 {[%emt 0:00:03]} 9. Qe2 {[%emt 0:01:40]} Nc5 {[%emt 0:04:18]} 10. Rd1 {[%emt 0:00:16]} Nxb3 {[%emt 0:01:25]} 11. axb3 {[%emt 0:00:05]} Be7 {[%emt 0:01:37]} 12. c4 {[%emt 0:00:20]} bxc4 {[%emt 0:05:16]} 13. bxc4 {[%emt 0:00:14]} Nb4 {[%emt 0:04:15]} 14. cxd5 {[%emt 0:01:21]} Nxd5 {[%emt 0:00:30]} 15. Rxa6 {[%emt 0:04:13]} O-O {[%emt 0:02:05]} 16. Nd4 {[%emt 0:05:24]} Bc5 {[%emt 0:05:47]} 17. Nc3 {[%emt 0:12:05]} Rxa6 {[%emt 0:17:29]} 18. Qxa6 {[%emt 0:00:36]} Qe7 {[%emt 0:18:23]} 19. Ne4 {[%emt 0:20:03]} Bb6 {[%emt 0:03:31]} 20. Bg5 {[%emt 0:10:32]} Qb4 {[%emt 0:01:00]} 21. Qb5 {[%emt 0:01:32]} Qxb5 {[%emt 0:02:27]} 22. Nxb5 {[%emt 0:00:32]} Rb8 {[%emt 0:00:42]} 23. Nbc3 {[%emt 0:01:36]} c6 {[%emt 0:00:08]} 24. Bc1 {[%emt 0:09:21]} h6 {[%emt 0:02:53]} 25. h3 {[%emt 0:00:24]} Bc7 {[%emt 0:04:59]} 26. f4 {[%emt 0:00:57]} Rb4 {[%emt 0:01:00]} 27. g4 {[%emt 0:06:49]} h5 {[%emt 0:03:56]} 28. Nxd5 {[%emt 0:10:55]} Bxd5 {[%emt 0:06:13]} 29. Nf2 {[%emt 0:06:51]} hxg4 {[%emt 0:01:45]} 30. hxg4 {[%emt 0:00:41]} Bb6 {[%emt 0:00:09]} 31. Kf1 {[%emt 0:02:09]} Rb3 {[%emt 0:01:20]} 32. Ke1 {[%emt 0:01:53]} Rf3 {[%emt 0:00:42]} 33. Nd3 {[%emt 0:00:32]} Bb3 {[%emt 0:01:28]} 34. Rd2 {[%emt 0:00:31]} Ba5 {[%emt 0:00:04]} 35. Ke2 {[%emt 0:00:13]} Rh3 {[%emt 0:00:21]} 36. Nf2 {[%emt 0:00:34]} Bxd2 {[%emt 0:00:25]} 37. Bxd2 {[%emt 0:00:24]} Bc4+ {[%emt 0:00:17]} 38. Ke1 {[%emt 0:00:52]} Rg3 {[%emt 0:01:26]} 39. Ne4 {[%emt 0:00:50]} Rxg4 {[%emt 0:00:30]} 40. Kf2 {[%emt 0:00:15]} Bd5 {[%emt 0:00:44]} 41. Ng3 {[%emt 0:02:21]} f6 {[%emt 0:00:30]} 42. exf6 {[%emt 0:00:30]} gxf6 {[%emt 0:00:04]} 43. Nf5 {[%emt 0:01:03]} Rg2+ {[%emt 0:01:21]} 44. Ke3 {[%emt 0:00:02]} Kf7 {[%emt 0:00:07]} 45. Bc3 {[%emt 0:00:16]} c5 {[%emt 0:02:54]} 46. Kd3 {[%emt 0:01:35]} Rf2 {[%emt 0:05:15]} 47. Ne3 {[%emt 0:00:28]} Be6 {[%emt 0:00:04]} 48. f5 {[%emt 0:00:37]} Bxf5+ {[%emt 0:01:33]} 49. Kc4 {[%emt 0:00:07]} Rf3 {[%emt 0:02:34]} 50. Bd2 {[%emt 0:00:56]} Rf2 {[%emt 0:00:57]} 51. Bc3 {[%emt 0:00:01]} Be4 {[%emt 0:00:40]} 52. Kxc5 {[%emt 0:00:08]} f5 {[%emt 0:00:03]} 53. Kd4 {[%emt 0:00:48]} Ba8 {[%emt 0:01:05]} 54. Nc4 {[%emt 0:01:53]} Ke6 {[%emt 0:00:13]} 55. Ke3 {[%emt 0:00:21]} Rf3+ {[%emt 0:00:16]} 56. Ke2 {[%emt 0:00:12]} Rh3 {[%emt 0:00:10]} 57. Ne3 {[%emt 0:01:18]} f4 {[%emt 0:00:17]} 58. Nc4 {[%emt 0:00:35]} Be4 {[%emt 0:00:57]} 59. Nd2 {[%emt 0:00:11]} Kf5 {[%emt 0:00:42]} 60. Bd4 {[%emt 0:00:10]} Bd3+ {[%emt 0:00:36]} 61. Kf2 {[%emt 0:00:56]} Rh2+ {[%emt 0:00:02]} 62. Ke1 {[%emt 0:00:01]} Kg4 {[%emt 0:01:02]} 63. b4 {[%emt 0:00:17]} Re2+ {[%emt 0:01:13]} 64. Kd1 {[%emt 0:01:57]} f3 {[%emt 0:00:08]} 65. Nf1 {[%emt 0:00:00]} f2 {[%emt 0:00:43]} 66. Nh2+ {[%emt 0:00:00]} Kh3 {[%emt 0:00:14]} 67. Nf1 {[%emt 0:00:00]} Ra2 {[%emt 0:00:50]} 68. Ne3 {[%emt 0:00:15]} f1=Q+ {[%emt 0:00:09]} 69. Nxf1 {[%emt 0:00:15]} Bxf1 {[%emt 0:00:01]} 70. Kc1 {[%emt 0:01:35]} Bd3 {[%emt 0:00:10]} 71. Bb2 {[%emt 0:00:48]} Kg4 {[%emt 0:00:08]} 0-1

[Event "XLIV Barbera del Valles-A 2022"]
[Site "Barbera del Valles"]
[Date "2022.07.08"]
[Round "5.8"]
[White "Del Amo Carbo, Jordi"]
[Black "Perez Bolanos, David"]
[Result "1/2-1/2"]
[ECO "D02"]
[WhiteElo "2148"]
[BlackElo "2041"]
[Annotator "RC"]
[PlyCount "136"]
[EventDate "2022.07.04"]
[EventType "swiss"]
[EventCountry "ESP"]
[SourceTitle "playchess.com"]
[Source "ChessBase"]
[SourceQuality "1"]
[TimeControl "5400+30"]

1. d4 {[%emt 0:00:21]} d5 {[%emt 0:00:08]} 2. Nf3 {[%emt 0:00:09]} Nf6 {[%emt 0:00:08]} 3. g3 {[%emt 0:00:21]} Bf5 {[%emt 0:00:16]} 4. Bg2 {[%emt 0:00:07]} h6 {[%emt 0:00:13]} 5. c4 {[%emt 0:00:30]} c6 {[%emt 0:00:24]} 6. Qb3 {[%emt 0:02:46]} Qb6 {[%emt 0:00:52]} 7. c5 {[%emt 0:05:04]} Qxb3 {[%emt 0:00:58]} 8. axb3 {[%emt 0:00:09]} e6 {[%emt 0:00:17]} 9. b4 {[%emt 0:00:47]} Be7 {[%emt 0:02:44]} 10. Nc3 {[%emt 0:01:37]} a6 {[%emt 0:00:37]} 11. b5 {[%emt 0:06:00]} cxb5 {[%emt 0:00:15]} 12. Nxb5 {[%emt 0:04:01]} O-O {[%emt 0:00:17]} 13. Nc3 {[%emt 0:01:57]} Nc6 {[%emt 0:04:47]} 14. O-O {[%emt 0:03:13]} Ne4 {[%emt 0:01:47]} 15. Na4 {[%emt 0:07:09]} Bf6 {[%emt 0:10:40]} 16. e3 {[%emt 0:06:32]} g5 {[%emt 0:02:08]} 17. Nd2 {[%emt 0:04:59]} Nxd2 {[%emt 0:07:07]} 18. Bxd2 {[%emt 0:01:55]} Bg6 {[%emt 0:02:37]} 19. Bc3 {[%emt 0:04:02]} Bg7 {[%emt 0:01:44]} 20. Nb6 {[%emt 0:03:24]} Rad8 {[%emt 0:01:17]} 21. Rfd1 {[%emt 0:01:05]} f5 {[%emt 0:07:11]} 22. f4 {[%emt 0:01:47]} g4 {[%emt 0:05:04]} 23. b4 {[%emt 0:01:27]} Na7 {[%emt 0:01:18]} 24. Bb2 {[%emt 0:01:25]} Be8 {[%emt 0:01:45]} 25. Bf1 {[%emt 0:01:58]} Bc6 {[%emt 0:03:28]} 26. Na4 {[%emt 0:02:02]} Ra8 {[%emt 0:02:07]} 27. Nb6 {[%emt 0:01:38]} Rab8 {[%emt 0:01:12]} 28. Ra2 {[%emt 0:01:35]} Bf6 {[%emt 0:00:31]} 29. Rda1 {[%emt 0:01:02]} Bd8 {[%emt 0:00:49]} 30. Na4 {[%emt 0:01:40]} Bc7 {[%emt 0:00:24]} 31. Nc3 {[%emt 0:02:24]} Kf7 {[%emt 0:02:11]} 32. Bxa6 {[%emt 0:06:02]} bxa6 {[%emt 0:18:22]} 33. Rxa6 {[%emt 0:00:12]} Rxb4 {[%emt 0:00:31]} 34. Rxa7 {[%emt 0:00:12]} Rc8 {[%emt 0:00:34]} 35. Bc1 {[%emt 0:02:15]} Ke7 {[%emt 0:01:28]} 36. Bd2 {[%emt 0:02:39]} Rb2 {[%emt 0:02:27]} 37. R1a2 {[%emt 0:00:27]} Rxa2 {[%emt 0:00:22]} 38. Nxa2 {[%emt 0:00:28]} Kd8 {[%emt 0:06:32]} 39. Nb4 {[%emt 0:00:59]} Kd7 {[%emt 0:00:34]} 40. Kf2 {[%emt 0:05:29]} Rb8 {[%emt 0:03:07]} 41. Ke1 {[%emt 0:05:31]} Bb5 {[%emt 0:03:02]} 42. Kd1 {[%emt 0:00:48]} Kc8 {[%emt 0:01:00]} 43. Kc2 {[%emt 0:01:50]} Rb7 {[%emt 0:00:14]} 44. Ra8+ {[%emt 0:00:28]} Rb8 {[%emt 0:00:33]} 45. Ra3 {[%emt 0:00:22]} h5 {[%emt 0:01:00]} 46. Bc3 {[%emt 0:01:57]} Rb7 {[%emt 0:00:47]} 47. Kd2 {[%emt 0:00:47]} Rb8 {[%emt 0:01:34]} 48. Nc2 {[%emt 0:00:42]} Bc6 {[%emt 0:01:19]} 49. Ra6 {[%emt 0:01:27]} Kd7 {[%emt 0:00:33]} 50. Nb4 {[%emt 0:03:37]} Bb5 {[%emt 0:00:43]} 51. Ra7 {[%emt 0:00:15]} Kc8 {[%emt 0:00:33]} 52. Nc2 {[%emt 0:01:26]} Rb7 {[%emt 0:01:27]} 53. Ra1 {[%emt 0:00:12]} Kb8 {[%emt 0:00:34]} 54. Ba5 {[%emt 0:00:46]} Bxa5+ {[%emt 0:00:44]} 55. Rxa5 {[%emt 0:00:08]} Bc4 {[%emt 0:00:26]} 56. Ra4 {[%emt 0:00:30]} Bb3 {[%emt 0:01:04]} 57. Rb4 {[%emt 0:00:09]} Bxc2 {[%emt 0:00:06]} 58. Rxb7+ {[%emt 0:00:03]} Kxb7 {[%emt 0:00:10]} 59. Kxc2 {[%emt 0:00:06]} Kc6 {[%emt 0:00:04]} 60. Kb3 {[%emt 0:00:13]} Kb5 {[%emt 0:00:06]} 61. Ka3 {[%emt 0:00:08]} Ka5 {[%emt 0:00:06]} 62. c6 {[%emt 0:01:02]} Kb6 {[%emt 0:00:05]} 63. Kb4 {[%emt 0:00:26]} Kxc6 {[%emt 0:00:04]} 64. Ka5 {[%emt 0:00:17]} Kc7 {[%emt 0:00:09]} 65. Ka6 {[%emt 0:00:34]} Kc6 {[%emt 0:00:05]} 66. Ka5 {[%emt 0:00:41]} Kc7 {[%emt 0:00:06]} 67. Kb5 {[%emt 0:00:10]} Kb7 {[%emt 0:00:04]} 68. Kc5 {[%emt 0:00:04]} Kc7 {[%emt 0:00:04]} 1/2-1/2

[Event "XLIV Barbera del Valles-A 2022"]
[Site "Barbera del Valles"]
[Date "2022.07.08"]
[Round "5.9"]
[White "Shah, Vishwa"]
[Black "Lorscheid, Gerhard"]
[Result "1-0"]
[ECO "C41"]
[WhiteElo "1931"]
[BlackElo "2126"]
[Annotator "RC"]
[PlyCount "91"]
[EventDate "2022.07.04"]
[EventType "swiss"]
[EventCountry "ESP"]
[SourceTitle "playchess.com"]
[Source "ChessBase"]
[SourceQuality "1"]
[TimeControl "5400+30"]

1. e4 {[%emt 0:00:01]} d6 {[%emt 0:00:07]} 2. d4 {[%emt 0:00:05]} Nf6 {[%emt 0:00:04]} 3. Nc3 {[%emt 0:00:04]} e5 {[%emt 0:00:05]} 4. Nf3 {[%emt 0:00:03]} Nbd7 {[%emt 0:00:09]} 5. Bc4 {[%emt 0:00:07]} Be7 {[%emt 0:00:06]} 6. O-O {[%emt 0:00:05]} Nb6 {[%emt 0:00:08]} 7. Bb3 {[%emt 0:00:37]} exd4 {[%emt 0:00:07]} 8. Nxd4 {[%emt 0:04:29]} c5 {[%emt 0:00:07]} 9. Nf5 {[%emt 0:00:03]} Bxf5 {[%emt 0:00:08]} 10. exf5 {[%emt 0:00:07]} c4 {[%emt 0:00:13]} 11. Ba4+ {[%emt 0:14:30]} Nxa4 {[%emt 0:00:07]} 12. Nxa4 {[%emt 0:00:05]} d5 {[%emt 0:02:03]} 13. Nc3 {[%emt 0:03:47]} Qd7 {[%emt 0:15:27]} 14. Bg5 {[%emt 0:05:58]} Rd8 {[%emt 0:03:07]} 15. Qf3 {[%emt 0:04:15]} O-O {[%emt 0:08:28]} 16. Rad1 {[%emt 0:00:42]} d4 {[%emt 0:00:19]} 17. Ne2 {[%emt 0:02:55]} d3 {[%emt 0:01:43]} 18. cxd3 {[%emt 0:00:05]} cxd3 {[%emt 0:00:18]} 19. Nc1 {[%emt 0:01:38]} Qd5 {[%emt 0:03:49]} 20. Rxd3 {[%emt 0:08:21]} Qxf3 {[%emt 0:00:15]} 21. Rxf3 {[%emt 0:00:03]} Rd5 {[%emt 0:00:27]} 22. Ne2 {[%emt 0:06:21]} Rb5 {[%emt 0:04:41]} 23. Rb1 {[%emt 0:00:35]} h6 {[%emt 0:04:42]} 24. Nc3 {[%emt 0:01:24]} Re5 {[%emt 0:01:53]} 25. Re3 {[%emt 0:04:29]} Rxe3 {[%emt 0:01:27]} 26. Bxe3 {[%emt 0:00:01]} a6 {[%emt 0:01:01]} 27. Rd1 {[%emt 0:01:25]} Rc8 {[%emt 0:01:08]} 28. h3 {[%emt 0:02:47]} b5 {[%emt 0:03:37]} 29. g4 {[%emt 0:00:49]} Bb4 {[%emt 0:06:54]} 30. Nd5 {[%emt 0:06:07]} Nxd5 {[%emt 0:02:03]} 31. Rxd5 {[%emt 0:00:01]} Be7 {[%emt 0:00:25]} 32. Kg2 {[%emt 0:08:22]} Bf6 {[%emt 0:04:20]} 33. Rd6 {[%emt 0:00:29]} Rc2 {[%emt 0:06:19]} 34. Rxa6 {[%emt 0:00:30]} Rxb2 {[%emt 0:00:02]} 35. Kf3 {[%emt 0:04:51]} b4 {[%emt 0:00:36]} 36. Bxh6 {[%emt 0:01:42]} Bd4 {[%emt 0:06:13]} 37. Be3 {[%emt 0:00:20]} Bxe3 {[%emt 0:00:04]} 38. fxe3 {[%emt 0:05:12]} Rh2 {[%emt 0:00:20]} 39. Kg3 {[%emt 0:00:03]} Re2 {[%emt 0:00:09]} 40. Kf4 {[%emt 0:00:08]} Rf2+ {[%emt 0:05:44]} 41. Ke4 {[%emt 0:00:22]} Rh2 {[%emt 0:00:19]} 42. Ra4 {[%emt 0:00:06]} Rxh3 {[%emt 0:01:47]} 43. Rxb4 {[%emt 0:00:20]} Rh2 {[%emt 0:00:27]} 44. a4 {[%emt 0:00:05]} f6 {[%emt 0:00:15]} 45. Kd5 {[%emt 0:01:02]} Re2 {[%emt 0:00:34]} 46. Re4 {[%emt 0:00:42]} 1-0

[Event "XLIV Barbera del Valles-A 2022"]
[Site "Barbera del Valles"]
[Date "2022.07.08"]
[Round "5.10"]
[White "Pimpalkhare Vedant"]
[Black "Nagare Akhilesh"]
[Result "1-0"]
[ECO "A10"]
[WhiteElo "2057"]
[BlackElo "1856"]
[Annotator "NA RC"]
[PlyCount "77"]
[EventDate "2022.07.04"]
[EventType "swiss"]
[EventCountry "ESP"]
[SourceTitle "playchess.com"]
[Source "ChessBase"]
[SourceQuality "1"]
[TimeControl "5400+30"]

1. Nf3 {[%emt 0:00:04]} e6 {[%emt 0:00:59]} 2. g3 {[%emt 0:01:22]} f5 {[%emt 0:00:29]} 3. Bg2 {[%emt 0:01:11]} Nf6 {[%emt 0:00:02]} 4. c4 {[%emt 0:00:44]} d5 {[%emt 0:02:59]} 5. cxd5 {[%emt 0:04:11]} exd5 {[%emt 0:00:06]} 6. O-O {[%emt 0:01:23]} Be7 {[%emt 0:07:38]} 7. d4 {[%emt 0:07:06]} O-O {[%emt 0:07:01]} 8. Qb3 {[%emt 0:06:06]} c6 {[%emt 0:06:18]} 9. Bf4 {[%emt 0:02:26]} Bd6 {[%emt 0:04:04]} 10. e3 {[%emt 0:05:45]} Bxf4 {[%emt 0:01:23]} 11. exf4 {[%emt 0:00:20]} a5 {[%emt 0:09:36]} 12. Nc3 {[%emt 0:02:59]} b5 {[%emt 0:02:56]} 13. Ne5 {[%emt 0:03:21]} Be6 {[%emt 0:12:32]} 14. Rac1 {[%emt 0:06:39]} Qd6 {[%emt 0:05:41]} 15. Rfe1 {[%emt 0:05:31]} Ra6 {[%emt 0:04:09]} 16. Re2 {[%emt 0:08:03]} Bf7 {[%emt 0:03:36]} 17. f3 {[%emt 0:04:40]} Ra7 {[%emt 0:04:46]} 18. Nd1 {[%emt 0:03:32]} Be8 {[%emt 0:05:46]} 19. Rec2 {[%emt 0:02:03]} g6 {[%emt 0:03:14]} 20. Bf1 {[%emt 0:03:11]} Nh5 {[%emt 0:01:46]} 21. Nf2 {[%emt 0:05:41]} Ng7 {[%emt 0:01:54]} 22. Qe3 {[%emt 0:00:49]} Qf6 {[%emt 0:04:14]} 23. Re1 {[%emt 0:02:24]} Qd8 {[%emt 0:03:38]} 24. Nfd3 {[%emt 0:02:13]} Rf6 {[%emt 0:01:21]} 25. Nc5 {[%emt 0:02:38]} Kf8 {[%emt 0:00:51]} 26. Qc3 {[%emt 0:06:15]} Qb6 {[%emt 0:02:35]} 27. Rce2 {[%emt 0:01:10]} Na6 {[%emt 0:02:17]} 28. Ned3 {[%emt 0:02:52]} Nb8 {[%emt 0:01:38]} 29. g4 {[%emt 0:00:33]} fxg4 {[%emt 0:00:57]} 30. fxg4 {[%emt 0:00:02]} Qd8 {[%emt 0:00:23]} 31. g5 {[%emt 0:00:59]} Rd6 {[%emt 0:00:20]} 32. Bh3 {[%emt 0:00:45]} Bf7 {[%emt 0:00:24]} 33. Ne5 {[%emt 0:00:57]} Bg8 {[%emt 0:00:52]} 34. Qg3 {[%emt 0:00:28]} Na6 {[%emt 0:00:30]} 35. Qh4 {[%emt 0:02:00]} Nc7 {[%emt 0:00:29]} 36. Qh6 {[%emt 0:00:14]} Nce8 {[%emt 0:00:33]} 37. Bg4 {[%emt 0:01:31]} Rc7 {[%emt 0:00:03]} 38. Ncd7+ {[%emt 0:01:05]} Rcxd7 {[%emt 0:00:23]} 39. Nxd7+ {[%emt 0:00:07]} 1-0